[Event "GER-chT Youth Countries 2018"]
[Site "Wurzburg"]
[Date "2018.10.04"]
[Round "3"]
[White "Glinzner, Alva"]
[Black "Lesny, Florian"]
[Result "1/2-1/2"]
[ECO "B38"]
[WhiteElo "1787"]
[BlackElo "2073"]
[Annotator "NA"]
[PlyCount "97"]
[EventDate "2018.10.03"]
[EventType "team-tourn"]
[EventCountry "GER"]
[SourceTitle "playchess.com"]
[Source "ChessBase"]
[SourceQuality "1"]
[TimeControl "40/5400+30:1800+30"]

1. e4 {[%emt 0:00:00]} c5 {[%emt 0:00:00]} 2. Nf3 {[%emt 0:00:00]} g6 {[%emt 0:00:00]} 3. c4 {[%emt 0:00:50]} Nc6 {[%emt 0:00:34]} 4. d4 {[%emt 0:00:08]} cxd4 {[%emt 0:00:09]} 5. Nxd4 {[%emt 0:00:05]} Bg7 {[%emt 0:00:15]} 6. Be3 {[%emt 0:00:36]} d6 {[%emt 0:00:16]} 7. Nc3 {[%emt 0:00:26]} Nf6 {[%emt 0:00:12]} 8. Be2 {[%emt 0:00:52]} O-O {[%emt 0:00:15]} 9. O-O {[%emt 0:03:15]} Bd7 {[%emt 0:01:03]} 10. Rc1 {[%emt 0:01:33]} Nxd4 {[%emt 0:00:51]} 11. Bxd4 {[%emt 0:00:09]} Bc6 {[%emt 0:00:35]} 12. f3 {[%emt 0:01:03]} a5 {[%emt 0:04:49]} 13. Nd5 {[%emt 0:09:37]} Nd7 {[%emt 0:02:25] B38: Sicilian: Maroczy Bind with 5...Bg7 and 7...0-0} 14. b3 {[%emt 0:02:51]} (14. Bxg7 Kxg7 15. Qd4+ Kg8 16. b3 Nc5 17. f4 Bxd5 18. cxd5 Rc8 19. e5 Qb6 20. Rc4 {½-½ (20) Dreev,A (2668)-Mamedov,R (2637) Khanty-Mansiysk 2013}) 14... Nc5 {[%emt 0:06:44]} 15. Bxg7 {[%emt 0:06:28]} Kxg7 {[%emt 0:00:32]} 16. Qd4+ {[%emt 0:00:17]} e5 {[%emt 0:05:49]} 17. Qd2 {[%emt 0:00:38]} Ne6 {[%emt 0:02:06]} 18. Nc3 $146 {[%emt 0:06:22]} ({Predecessor:} 18. Rc3 Nd4 19. f4 Bxd5 20. cxd5 Qb6 21. Kh1 {1-0 (30) Ahmadi,R (1982)-Gasimov,P (2497) Urmia 2015}) 18... Nf4 {[%emt 0:07:38]} 19. Rcd1 {[%emt 0:03:34]} Qg5 {[%emt 0:01:41]} 20. Bd3 {[%emt 0:00:36]} f5 {[%emt 0:04:46]} 21. Kh1 {[%emt 0:04:49]} Rad8 {[%emt 0:06:10]} 22. Rf2 {[%emt 0:06:46]} Qe7 {[%emt 0:05:54]} 23. Bb1 {[%emt 0:05:51]} Ne6 {[%emt 0:04:34]} 24. Qe3 {[%emt 0:02:22]} Nc5 {[%emt 0:08:16]} 25. Rfd2 {[%emt 0:01:57]} f4 {[%emt 0:02:01]} 26. Qe1 {[%emt 0:03:33]} g5 {[%emt 0:01:01]} 27. Bc2 {[%emt 0:04:03]} h5 {[%emt 0:02:35]} 28. a3 {[%emt 0:02:50]} b6 {[%emt 0:05:06]} 29. b4 {[%emt 0:02:20]} axb4 {[%emt 0:00:51]} 30. axb4 {[%emt 0:00:08]} Ne6 {[%emt 0:00:25]} 31. Nd5 {[%emt 0:01:23]} Qb7 {[%emt 0:03:52]} ({But not} 31... Bxd5 $6 32. exd5 Nc7 33. Qe4 $18) 32. Nc3 Qc7 {[%emt 0:02:33]} 33. Bd3 {[%emt 0:19:34]} Rf6 {[%emt 0:01:57]} (33... Nd4 $14) 34. Qf2 {[%emt 0:02:41]} (34. Nd5 $16 Bxd5 35. exd5) 34... Nd4 {[%emt 0:02:15]} 35. Ne2 {[%emt 0:00:48]} Nxe2 {[%emt 0:01:15]} 36. Bxe2 {[%emt 0:00:37]} Bd7 {[%emt 0:08:49]} 37. Ra2 {[%emt 0:06:09]} (37. c5 $14) 37... Rg6 {[%emt 0:01:40]} 38. Rda1 {[%emt 0:00:52]} Rb8 {[%emt 0:00:51]} 39. Bf1 {[%emt 0:02:20]} (39. Ra7 $14 Qc8 40. g3) 39... g4 {[%emt 0:06:46]} 40. Qh4 Qd8 {[%emt 0:01:50]} 41. Qxd8 {[%emt 0:03:38]} Rxd8 {[%emt 0:00:53]} 42. Ra7 {[%emt 0:00:28]} gxf3 {[%emt 0:02:36]} 43. gxf3 {[%emt 0:00:30]} Kh6 {[%emt 0:02:26]} 44. R1a2 {[%emt 0:07:30]} Rdg8 {[%emt 0:03:40]} 45. Rg2 {[%emt 0:00:20]} Rxg2 {[%emt 0:00:49]} 46. Bxg2 {[%emt 0:03:59]} Be6 {[%emt 0:00:30]} 47. Ra6 {[%emt 0:05:04]} Bxc4 {[%emt 0:04:04]} 48. Rxb6 $11 {[%emt 0:00:04]} Kg5 {[%emt 0:00:46]} 49. Rc6 {[%emt 0:03:03]} 1/2-1/2

[Event "GER-chT Youth Countries 2018"]
[Site "Wurzburg"]
[Date "2018.10.04"]
[Round "3"]
[White "Reuter, Elisa"]
[Black "Reitz, Theresa"]
[Result "0-1"]
[ECO "B01"]
[WhiteElo "1786"]
[BlackElo "1788"]
[Annotator "NA RC"]
[PlyCount "68"]
[EventDate "2018.10.03"]
[EventType "team-tourn"]
[EventCountry "GER"]
[SourceTitle "playchess.com"]
[Source "ChessBase"]
[SourceQuality "1"]
[TimeControl "40/5400+30:1800+30"]

1. e4 {[%emt 0:00:00]} d5 {[%emt 0:00:00]} 2. exd5 {[%emt 0:00:00]} Qxd5 {[%emt 0:00:00]} 3. Nc3 {[%emt 0:00:00]} Qd6 {[%emt 0:00:00]} 4. d4 {[%emt 0:00:22]} Nf6 {[%emt 0:00:12]} 5. Nf3 {[%emt 0:00:45]} a6 {[%emt 0:00:21]} 6. h3 {[%emt 0:01:36]} b5 {[%emt 0:05:31]} 7. a4 {[%emt 0:06:24]} b4 {[%emt 0:05:14]} 8. Ne2 {[%emt 0:00:19]} a5 {[%emt 0:02:38]} 9. Bf4 {[%emt 0:02:50]} Qd8 {[%emt 0:00:24]} 10. Ng3 {[%emt 0:02:29]} Bb7 {[%emt 0:01:15]} 11. Be2 {[%emt 0:02:28]} e6 {[%emt 0:06:04]} 12. O-O {[%emt 0:00:58]} Be7 {[%emt 0:00:50]} 13. Ne5 {[%emt 0:02:44]} O-O {[%emt 0:03:02]} 14. Bf3 {[%emt 0:01:09]} Nd5 {[%emt 0:01:38]} 15. Bc1 {[%emt 0:01:22]} c5 {[%emt 0:08:09]} 16. dxc5 {[%emt 0:00:40]} Bxc5 {[%emt 0:03:43]} 17. Ne4 {[%emt 0:00:29]} Ba7 {[%emt 0:00:45]} 18. Nd3 {[%emt 0:01:38]} Qc7 {[%emt 0:01:52]} 19. Bd2 {[%emt 0:02:02]} Ba6 {[%emt 0:07:58]} 20. Be2 {[%emt 0:01:08]} h6 {[%emt 0:06:03]} 21. Ne1 {[%emt 0:01:03]} f5 {[%emt 0:01:30]} 22. Bxa6 {[%emt 0:01:18]} Nxa6 {[%emt 0:00:13]} 23. Ng3 {[%emt 0:02:06]} Qxg3 {[%emt 0:00:51]} 24. Qe2 {[%emt 0:00:48]} Qd6 {[%emt 0:01:02]} 25. Nd3 {[%emt 0:00:22]} Rac8 {[%emt 0:04:34]} 26. Rac1 {[%emt 0:00:33]} Rfd8 {[%emt 0:07:41]} 27. Ne5 {[%emt 0:05:19]} Nc5 {[%emt 0:03:10]} 28. Nf3 {[%emt 0:01:50]} Ne4 {[%emt 0:02:07]} 29. Kh1 {[%emt 0:02:01]} Qc5 {[%emt 0:03:14]} 30. Kh2 {[%emt 0:01:07]} Qc7+ {[%emt 0:03:25]} 31. Kh1 {[%emt 0:00:14]} Qb6 {[%emt 0:00:07]} 32. Kh2 {[%emt 0:01:30]} Rd6 {[%emt 0:02:13]} 33. Ne5 {[%emt 0:01:00]} Qd4 {[%emt 0:04:14]} 34. Nd3 {[%emt 0:00:39]} Rdc6 {[%emt 0:01:16]} 0-1

[Event "GER-chT Youth Countries 2018"]
[Site "Wurzburg"]
[Date "2018.10.04"]
[Round "3"]
[White "Kluehs, Gustaf"]
[Black "Weidenhoefer, Max"]
[Result "0-1"]
[ECO "D08"]
[WhiteElo "1775"]
[BlackElo "1596"]
[Annotator "NA RC"]
[PlyCount "56"]
[EventDate "2018.10.03"]
[EventType "team-tourn"]
[EventCountry "GER"]
[SourceTitle "playchess.com"]
[Source "ChessBase"]
[SourceQuality "1"]
[TimeControl "40/5400+30:1800+30"]

1. d4 {[%emt 0:00:00]} d5 {[%emt 0:00:00]} 2. c4 {[%emt 0:00:00]} e5 {[%emt 0:00:00]} 3. dxe5 {[%emt 0:00:00]} d4 {[%emt 0:00:00]} 4. Nf3 {[%emt 0:00:00]} Nc6 {[%emt 0:00:03]} 5. Bg5 {[%emt 0:00:00]} Be7 {[%emt 0:01:13]} 6. h4 {[%emt 0:00:00]} Bxg5 {[%emt 0:02:33]} 7. hxg5 {[%emt 0:00:00]} Be6 {[%emt 0:00:20]} 8. Nbd2 {[%emt 0:00:13]} Qd7 {[%emt 0:02:55]} 9. a3 {[%emt 0:01:56]} Nge7 {[%emt 0:01:14]} 10. g3 {[%emt 0:02:40]} Ng6 {[%emt 0:02:49]} 11. Bg2 {[%emt 0:02:45]} O-O-O {[%emt 0:02:39]} 12. b4 {[%emt 0:06:04]} h6 {[%emt 0:04:10]} 13. gxh6 {[%emt 0:01:42]} Rxh6 {[%emt 0:00:23]} 14. Rxh6 {[%emt 0:00:08]} gxh6 {[%emt 0:00:02]} 15. b5 {[%emt 0:00:32]} Ncxe5 {[%emt 0:00:24]} 16. Nxe5 {[%emt 0:00:20]} Nxe5 {[%emt 0:00:10]} 17. Qa4 {[%emt 0:00:44]} Kb8 {[%emt 0:01:04]} 18. c5 {[%emt 0:01:01]} Bd5 {[%emt 0:03:27]} 19. Ne4 {[%emt 0:22:20]} Qe7 {[%emt 0:08:12]} 20. f4 {[%emt 0:25:08]} Ng4 {[%emt 0:02:56]} 21. Bh3 {[%emt 0:01:58]} Qxe4 {[%emt 0:01:00]} 22. Bxg4 {[%emt 0:00:17]} Qh1+ {[%emt 0:00:12]} 23. Kf2 {[%emt 0:00:04]} Qg2+ {[%emt 0:00:53]} 24. Ke1 {[%emt 0:00:07]} Qxg3+ {[%emt 0:00:51]} 25. Kd1 {[%emt 0:00:23]} Qg1+ {[%emt 0:00:15]} 26. Kd2 {[%emt 0:00:04]} Qxa1 {[%emt 0:00:09]} 27. c6 {[%emt 0:00:04]} Qc3+ {[%emt 0:00:17]} 28. Kd1 {[%emt 0:00:03]} Bb3+ 0-1

[Event "GER-chT Youth Countries 2018"]
[Site "Wurzburg"]
[Date "2018.10.04"]
[Round "3"]
[White "Dietz, Kristin"]
[Black "Doll, Rebecca"]
[Result "1/2-1/2"]
[ECO "C74"]
[WhiteElo "1762"]
[BlackElo "1722"]
[Annotator "NA RC"]
[PlyCount "99"]
[EventDate "2018.10.03"]
[EventType "team-tourn"]
[EventCountry "GER"]
[SourceTitle "playchess.com"]
[Source "ChessBase"]
[SourceQuality "1"]
[TimeControl "40/5400+30:1800+30"]

1. e4 {[%emt 0:00:00]} e5 {[%emt 0:00:00]} 2. Nf3 {[%emt 0:00:00]} Nc6 {[%emt 0:00:00]} 3. Bb5 {[%emt 0:00:00]} a6 {[%emt 0:00:00]} 4. Ba4 {[%emt 0:00:00]} d6 {[%emt 0:00:00]} 5. c3 {[%emt 0:00:00]} f5 {[%emt 0:00:28]} 6. d3 {[%emt 0:06:22]} Nf6 {[%emt 0:09:52]} 7. Nbd2 {[%emt 0:02:35]} g6 {[%emt 0:13:28]} 8. Qe2 {[%emt 0:12:37]} Qe7 {[%emt 0:12:05]} 9. O-O {[%emt 0:04:14]} Bg7 {[%emt 0:05:06]} 10. Re1 {[%emt 0:02:27]} fxe4 {[%emt 0:07:43]} 11. Nxe4 {[%emt 0:00:50]} O-O {[%emt 0:08:15]} 12. d4 {[%emt 0:05:12]} Nxe4 {[%emt 0:04:48]} 13. Qxe4 {[%emt 0:00:26]} Bf5 {[%emt 0:00:29]} 14. Qe2 {[%emt 0:00:30]} e4 {[%emt 0:02:57]} 15. Bxc6 {[%emt 0:01:48]} bxc6 {[%emt 0:01:00]} 16. Nd2 {[%emt 0:01:46]} d5 {[%emt 0:02:41]} 17. Nb3 {[%emt 0:01:00]} Qh4 {[%emt 0:03:35]} 18. h3 {[%emt 0:02:42]} Rf7 {[%emt 0:06:53]} 19. Qe3 {[%emt 0:04:39]} Bxh3 {[%emt 0:09:53]} 20. Rf1 {[%emt 0:09:46]} Bg4 {[%emt 0:05:57]} 21. Qg5 {[%emt 0:02:15]} Bf6 {[%emt 0:01:43]} 22. Qxh4 {[%emt 0:00:31]} Bxh4 {[%emt 0:00:09]} 23. Be3 {[%emt 0:00:13]} Raf8 {[%emt 0:00:21]} 24. Rae1 {[%emt 0:00:22]} Bc8 {[%emt 0:02:19]} 25. Rc1 {[%emt 0:04:04]} Bg4 {[%emt 0:01:01]} 26. Rc2 {[%emt 0:00:37]} Kg7 {[%emt 0:00:55]} 27. Nc5 {[%emt 0:00:43]} a5 {[%emt 0:00:35]} 28. c4 {[%emt 0:01:15]} dxc4 {[%emt 0:00:28]} 29. Rfc1 {[%emt 0:01:47]} Bc8 {[%emt 0:00:17]} 30. g3 {[%emt 0:00:22]} Be7 {[%emt 0:00:50]} 31. Rxc4 {[%emt 0:00:29]} Bf5 {[%emt 0:00:13]} 32. Nb3 {[%emt 0:01:02]} Be6 {[%emt 0:00:23]} 33. Rxc6 {[%emt 0:00:13]} Bxb3 {[%emt 0:00:08]} 34. axb3 {[%emt 0:00:05]} Bd6 {[%emt 0:00:20]} 35. Ra6 {[%emt 0:00:48]} Rf5 {[%emt 0:00:24]} 36. Ra7 {[%emt 0:00:47]} Rb5 {[%emt 0:00:25]} 37. Rc3 {[%emt 0:00:52]} Rfb8 {[%emt 0:00:20]} 38. Rc6 {[%emt 0:03:58]} R8b7 {[%emt 0:00:27]} 39. Rxb7 {[%emt 0:02:17]} Rxb7 {[%emt 0:00:05]} 40. Rc3 {[%emt 0:00:29]} Bb4 {[%emt 0:00:37]} 41. Rc1 {[%emt 0:30:18]} Bd6 {[%emt 0:32:11]} 42. Bd2 {[%emt 0:02:56]} Rb5 {[%emt 0:00:00]} 43. Rc3 {[%emt 0:00:00]} Kf6 {[%emt 0:00:00]} 44. Re3 {[%emt 0:00:00]} Kf5 {[%emt 0:00:00]} 45. Kg2 {[%emt 0:00:00]} g5 {[%emt 0:00:00]} 46. f3 {[%emt 0:00:00]} exf3+ {[%emt 0:00:00]} 47. Kxf3 {[%emt 0:00:00]} g4+ {[%emt 0:00:00]} 48. Ke2 {[%emt 0:00:00]} Rd5 {[%emt 0:00:00]} 49. Bc3 {[%emt 0:00:00]} Rb5 {[%emt 0:00:00]} 50. Bd2 {[%emt 0:00:00] Ke5} 1/2-1/2

[Event "GER-chT Youth Countries 2018"]
[Site "Wurzburg"]
[Date "2018.10.04"]
[Round "3"]
[White "Oberhofer, Marie"]
[Black "Haenselmann, Hendrik"]
[Result "1/2-1/2"]
[ECO "B28"]
[WhiteElo "1724"]
[BlackElo "1660"]
[Annotator "NA RC"]
[PlyCount "88"]
[EventDate "2018.10.03"]
[EventType "team-tourn"]
[EventCountry "GER"]
[SourceTitle "playchess.com"]
[Source "ChessBase"]
[SourceQuality "1"]
[TimeControl "40/5400+30:1800+30"]

1. e4 {[%emt 0:00:00]} c5 {[%emt 0:00:00]} 2. Nf3 {[%emt 0:00:00]} a6 {[%emt 0:00:00]} 3. d4 {[%emt 0:00:00]} cxd4 {[%emt 0:00:00]} 4. Nxd4 {[%emt 0:00:00]} Nf6 {[%emt 0:00:00]} 5. Nc3 {[%emt 0:00:00]} e5 {[%emt 0:00:00]} 6. Nf3 {[%emt 0:00:03]} Bb4 {[%emt 0:00:01]} 7. Bc4 {[%emt 0:00:14]} O-O {[%emt 0:01:43]} 8. Qd3 {[%emt 0:02:47]} d6 {[%emt 0:04:19]} 9. O-O {[%emt 0:02:49]} Bxc3 {[%emt 0:01:06]} 10. bxc3 {[%emt 0:00:12]} Qc7 11. Ba3 {[%emt 0:01:19]} Rd8 {[%emt 0:01:59]} 12. Ng5 {[%emt 0:09:50]} Rd7 {[%emt 0:04:21]} 13. Rad1 {[%emt 0:08:42]} h6 {[%emt 0:04:07]} 14. Nxf7 {[%emt 0:05:58]} Rxf7 {[%emt 0:00:51]} 15. Bxd6 {[%emt 0:00:47]} Qd7 {[%emt 0:00:42]} 16. Bxf7+ {[%emt 0:01:39]} Kxf7 {[%emt 0:00:09]} 17. Bxe5 {[%emt 0:00:29]} Qxd3 {[%emt 0:00:56]} 18. cxd3 {[%emt 0:00:15]} Nc6 {[%emt 0:00:18]} 19. Bf4 {[%emt 0:02:07]} Be6 {[%emt 0:00:39]} 20. a3 {[%emt 0:01:44]} b5 {[%emt 0:00:48]} 21. Rfe1 {[%emt 0:01:25]} Bb3 {[%emt 0:01:05]} 22. Rd2 {[%emt 0:00:31]} Re8 {[%emt 0:05:03]} 23. Kf1 {[%emt 0:04:01]} Kg6 {[%emt 0:04:18]} 24. f3 {[%emt 0:02:37]} Nh5 {[%emt 0:02:29]} 25. Bg3 {[%emt 0:05:15]} Rd8 {[%emt 0:02:07]} 26. f4 {[%emt 0:18:12]} Nxg3+ {[%emt 0:06:18]} 27. hxg3 {[%emt 0:00:06]} Na5 {[%emt 0:01:58]} 28. d4 {[%emt 0:02:43]} Nc4 {[%emt 0:01:00]} 29. Rf2 {[%emt 0:00:31]} Nxa3 {[%emt 0:00:49]} 30. Ra1 {[%emt 0:04:12]} b4 {[%emt 0:02:16]} 31. f5+ {[%emt 0:05:45]} Kf7 {[%emt 0:00:28]} 32. Rf3 {[%emt 0:04:13]} Nc4 {[%emt 0:04:15]} 33. Ke2 {[%emt 0:01:20]} a5 {[%emt 0:00:48]} 34. cxb4 {[%emt 0:05:31]} a4 {[%emt 0:05:14]} 35. Rd3 {[%emt 0:05:14]} Nd6 {[%emt 0:06:19]} 36. Re3 {[%emt 0:03:22]} Re8 {[%emt 0:03:01]} 37. Kd3 {[%emt 0:01:41]} Rc8 {[%emt 0:06:52]} 38. Ree1 {[%emt 0:02:27]} Bc2+ {[%emt 0:03:27]} 39. Ke3 {[%emt 0:00:36]} Nxe4 {[%emt 0:02:52]} 40. Kf4 {[%emt 0:00:29]} Nf6 {[%emt 0:06:36]} 41. Rec1 {[%emt 0:03:00]} Rc6 {[%emt 0:00:50]} 42. Ra2 {[%emt 0:02:38]} Be4 {[%emt 0:03:07]} 43. Rc5 {[%emt 0:02:47]} Rxc5 {[%emt 0:05:59]} 44. dxc5 {[%emt 0:00:29]} Bc6 {[%emt 0:02:33] Ke4} 1/2-1/2

[Event "GER-chT Youth Countries 2018"]
[Site "Wurzburg"]
[Date "2018.10.04"]
[Round "3"]
[White "Deuer, Marius"]
[Black "Schilay, Eva"]
[Result "1-0"]
[ECO "C41"]
[WhiteElo "1711"]
[BlackElo "1690"]
[Annotator "NA RC"]
[PlyCount "49"]
[EventDate "2018.10.03"]
[EventType "team-tourn"]
[EventCountry "GER"]
[SourceTitle "playchess.com"]
[Source "ChessBase"]
[SourceQuality "1"]
[TimeControl "40/5400+30:1800+30"]

1. e4 d6 2. d4 Nf6 3. Nc3 e5 4. Nf3 Nbd7 5. Bc4 Be7 6. O-O O-O 7. Qe2 c6 8. a4 a5 9. Ba2 Qc7 10. h3 b6 11. Rd1 Bb7 12. dxe5 dxe5 13. Nh4 Ba6 14. Qf3 Rfe8 15. g4 h6 16. Nf5 Bf8 17. h4 Nc5 18. g5 Nh7 19. g6 Nf6 20. gxf7+ Kh8 21. fxe8=Q Rxe8 22. Nxh6 gxh6 23. Qxf6+ Bg7 24. Qf7 Re7 25. Qg8# 1-0

[Event "GER-chT Youth Countries 2018"]
[Site "Wurzburg"]
[Date "2018.10.04"]
[Round "3"]
[White "Abele, Anais"]
[Black "Fock, Amina"]
[Result "0-1"]
[ECO "B92"]
[WhiteElo "1679"]
[BlackElo "1816"]
[Annotator "NA RC"]
[PlyCount "106"]
[EventDate "2018.10.03"]
[EventType "team-tourn"]
[EventCountry "GER"]
[SourceTitle "playchess.com"]
[Source "ChessBase"]
[SourceQuality "1"]
[TimeControl "40/5400+30:1800+30"]

1. e4 {[%emt 0:00:00]} c5 {[%emt 0:00:00]} 2. Nf3 {[%emt 0:00:00]} d6 {[%emt 0:00:00]} 3. d4 {[%emt 0:01:04]} cxd4 {[%emt 0:00:00]} 4. Nxd4 {[%emt 0:01:03]} Nf6 {[%emt 0:00:02]} 5. Nc3 {[%emt 0:01:06]} a6 {[%emt 0:00:09]} 6. Be3 {[%emt 0:01:27]} Ng4 {[%emt 0:03:19]} 7. Bc1 {[%emt 0:06:01]} Nf6 {[%emt 0:05:05]} 8. Be2 {[%emt 0:04:44]} e5 {[%emt 0:00:08]} 9. Nb3 {[%emt 0:01:49]} Be7 {[%emt 0:00:18]} 10. Be3 {[%emt 0:02:28]} Be6 {[%emt 0:00:29]} 11. f3 {[%emt 0:02:44]} h5 {[%emt 0:04:16]} 12. Qd2 {[%emt 0:04:31]} Nbd7 {[%emt 0:01:54] B90: Sicilian Najdorf: Unusual White 6th moves, 6 Be3 Ng4 and 6 Be3 e5} 13. a4 {[%emt 0:05:37]} Rc8 {[%emt 0:05:01]} 14. a5 {[%emt 0:06:38]} Qc7 {[%emt 0:06:53]} 15. O-O {[%emt 0:07:26]} O-O {[%emt 0:09:08]} 16. Rfd1 {[%emt 0:06:29]} Rfd8 {[%emt 0:07:51] [#]} 17. Bd3 $146 {[%emt 0:07:39]} ({Predecessor:} 17. Qe1 Nc5 18. Nxc5 dxc5 19. Na4 Rxd1 20. Rxd1 {0-1 (54) Leko,P (2731)-Karjakin,S (2770) Sochi 2014}) 17... Nc5 {[%emt 0:14:54]} 18. Nxc5 {[%emt 0:04:28]} dxc5 {[%emt 0:00:18]} 19. Qf2 {[%emt 0:02:53]} Nd7 {[%emt 0:09:09]} 20. Nd5 {[%emt 0:06:59]} Bxd5 {[%emt 0:01:22]} 21. exd5 {[%emt 0:00:17]} c4 {[%emt 0:00:16]} 22. Be4 {[%emt 0:04:39]} Qd6 {[%emt 0:04:09]} 23. c3 {[%emt 0:02:27]} Rf8 {[%emt 0:05:05]} 24. Bf5 {[%emt 0:02:17]} Rc7 {[%emt 0:03:55]} 25. Bxd7 {[%emt 0:02:26]} (25. Ra4 $14) 25... Rxd7 {[%emt 0:01:01]} 26. Bb6 {[%emt 0:01:21]} Rc8 {[%emt 0:02:51]} 27. Ra4 {[%emt 0:02:17] [#]} (27. Kh1 $11) 27... Qc6 $1 {[%emt 0:02:01]} 28. dxc6 {[%emt 0:03:21]} Rxd1+ {[%emt 0:00:06]} 29. Qf1 {[%emt 0:00:29]} Rxf1+ {[%emt 0:00:04]} 30. Kxf1 {[%emt 0:00:31]} Rxc6 {[%emt 0:00:04]} 31. Ra1 {[%emt 0:01:23]} Kf8 {[%emt 0:02:33]} 32. Ke2 {[%emt 0:02:04]} Rd6 {[%emt 0:02:04]} (32... Ke8 $17 33. Bf2 Kd7) 33. Bc5 {[%emt 0:02:55]} (33. Ra4 $1 $11 {was the only way to keep the balance.}) 33... Rd5 {[%emt 0:00:46]} 34. Bxe7+ {[%emt 0:00:46]} Kxe7 {[%emt 0:00:05]} 35. Ra4 {[%emt 0:00:25]} Rb5 {[%emt 0:02:02]} 36. Ra2 {[%emt 0:02:29]} Kd6 {[%emt 0:00:36]} 37. Ke3 {[%emt 0:00:48]} f5 {[%emt 0:02:06]} 38. h3 {[%emt 0:01:06]} h4 {[%emt 0:00:36]} 39. Ra4 {[%emt 0:01:10]} Kd5 {[%emt 0:01:22]} 40. Ra2 {[%emt 0:00:08]} f4+ {[%emt 0:00:22]} 41. Kf2 {[%emt 0:01:41]} e4 {[%emt 0:00:12]} 42. fxe4+ {[%emt 0:00:31]} Kxe4 {[%emt 0:00:05]} 43. Ke2 {[%emt 0:00:41]} Rg5 {[%emt 0:00:33]} 44. Kf1 {[%emt 0:00:30]} Kd3 {[%emt 0:00:12]} 45. Ra4 {[%emt 0:00:27]} Rb5 {[%emt 0:01:04]} 46. Ra2 {[%emt 0:01:39]} Ke3 {[%emt 0:00:56]} 47. Kg1 {[%emt 0:01:07]} f3 {[%emt 0:00:44]} 48. gxf3 {[%emt 0:00:14]} Kxf3 {[%emt 0:00:06]} 49. Ra4 {[%emt 0:00:40]} Rxb2 {[%emt 0:01:05]} 50. Rxc4 {[%emt 0:00:18]} g5 {[%emt 0:02:17]} 51. Rc5 $2 {[%emt 0:00:54]} (51. Ra4) 51... Rb5 {[%emt 0:00:13]} 52. Rc7 {[%emt 0:01:19]} Kg3 $19 {[%emt 0:00:20]} (52... Rb1+ $142 53. Kh2 Rb2+ 54. Kg1 Kg3) 53. c4 {[%emt 0:00:27]} Rb1# 0-1

[Event "GER-chT Youth Countries 2018"]
[Site "Wurzburg"]
[Date "2018.10.04"]
[Round "3"]
[White "Mundt, Alexandra"]
[Black "Flach, Helene"]
[Result "1/2-1/2"]
[ECO "A06"]
[WhiteElo "1679"]
[BlackElo "1844"]
[Annotator "NA RC"]
[PlyCount "83"]
[EventDate "2018.10.03"]
[EventType "team-tourn"]
[EventCountry "GER"]
[SourceTitle "playchess.com"]
[Source "ChessBase"]
[SourceQuality "1"]
[TimeControl "40/5400+30:1800+30"]

1. Nf3 {[%emt 0:00:00]} d5 {[%emt 0:00:00]} 2. c4 {[%emt 0:00:00]} e6 {[%emt 0:00:00]} 3. b3 {[%emt 0:00:08]} Nf6 {[%emt 0:00:07]} 4. Bb2 {[%emt 0:00:07]} Be7 {[%emt 0:00:57]} 5. g3 {[%emt 0:00:17]} O-O {[%emt 0:00:32]} 6. Bg2 {[%emt 0:00:08]} c5 {[%emt 0:03:06]} 7. O-O {[%emt 0:01:08]} Nc6 {[%emt 0:04:30]} 8. e3 {[%emt 0:00:27]} b6 {[%emt 0:05:25]} 9. d4 {[%emt 0:05:11]} Ba6 {[%emt 0:03:31] A14: Reti-Eröffnung} 10. Nbd2 {[%emt 0:03:19]} (10. Ne5 Rc8 11. Nd2 cxd4 12. Nxc6 Rxc6 13. Bxd4 Rc7 14. Qe2 Bb4 15. Rfd1 Qe7 16. a3 Bxd2 17. Qxd2 dxc4 18. Be5 Rd7 19. Bxf6 {1-0 (19) Nakamura,H (2769)-Kramnik,V (2792) Paris 2018}) 10... Rc8 {[%emt 0:01:51]} 11. Rc1 {[%emt 0:13:19]} Qc7 {[%emt 0:08:20]} 12. Re1 {[%emt 0:08:17]} dxc4 $146 {[%emt 0:06:09]} ({Vorgänger:} 12... Nb4 13. Ne5 Nxa2 14. Ra1 Nb4 15. Bc3 cxd4 16. exd4 {1-0 (44) Dang,B (2198)-Truong T Thanh,H Hanoi 1995}) 13. Nxc4 {[%emt 0:04:57]} Rfd8 {[%emt 0:01:49]} 14. Nfe5 {[%emt 0:05:35]} Bb7 {[%emt 0:06:04]} 15. Qe2 {[%emt 0:08:07]} Nxe5 {[%emt 0:02:31]} 16. dxe5 {[%emt 0:13:19]} Nd5 {[%emt 0:04:31]} 17. a3 {[%emt 0:02:41]} Qb8 {[%emt 0:02:17]} 18. Qg4 {[%emt 0:06:27]} g6 {[%emt 0:02:53]} 19. Red1 {[%emt 0:01:39]} b5 {[%emt 0:05:14]} 20. Nd6 {[%emt 0:04:40]} Bxd6 {[%emt 0:07:35]} 21. exd6 {[%emt 0:00:08]} Nb6 {[%emt 0:02:21]} (21... f5 $16 22. Qe2 Qxd6) 22. Qg5 {[%emt 0:05:50]} Nd7 {[%emt 0:01:37]} 23. Bxb7 {[%emt 0:03:05]} Qxb7 {[%emt 0:00:46] [#]} 24. Rxc5 $1 {[%emt 0:03:01]} Qf3 {[%emt 0:10:19]} ({Worse is} 24... Nxc5 25. Qf6 Qh1+ 26. Kxh1 e5 27. Bxe5 Nxb3 28. Qh8#) (24... f6 $16 25. Rxc8 Rxc8) 25. Rcc1 {[%emt 0:02:56]} Re8 {[%emt 0:01:55]} (25... f6 $142 26. Qf4 Qxf4 27. gxf4 (27. exf4 Rxc1 28. Rxc1 e5 $16) 27... Rxc1 28. Rxc1 e5 29. fxe5 Nxe5 30. Bxe5 fxe5) 26. Qxb5 {[%emt 0:02:21]} Rc2 {[%emt 0:03:31]} 27. Rf1 {[%emt 0:02:24]} ({Inferior is} 27. Rxc2 Qxd1+ 28. Kg2 Qxc2 $11) 27... Rxb2 {[%emt 0:00:20]} 28. Qxd7 {[%emt 0:00:05]} Qa8 {[%emt 0:00:24]} 29. Qc7 {[%emt 0:03:03]} Rxb3 {[%emt 0:01:41]} 30. d7 {[%emt 0:00:07]} Rd8 {[%emt 0:00:56]} 31. Qxd8+ {[%emt 0:01:18]} (31. Rfd1 $18 {has better winning chances.} Kg7 32. Qe5+ Kg8 33. Qf6) 31... Qxd8 {[%emt 0:00:21]} 32. Rc8 {[%emt 0:00:03]} Rb8 {[%emt 0:00:17] [#]} 33. Rfc1 $1 {[%emt 0:01:11]} ({But not} 33. Rxd8+ $6 Rxd8 34. Rd1 Kf8 $11) 33... Kg7 {[%emt 0:00:18]} 34. Rxd8 {[%emt 0:00:17]} Rxd8 {[%emt 0:00:06]} 35. Rc7 {[%emt 0:00:02]} a6 {[%emt 0:01:07]} 36. Kf1 {[%emt 0:00:28]} Kf6 {[%emt 0:00:20]} 37. Ke2 {[%emt 0:00:03]} Ke7 {[%emt 0:01:09]} 38. Kd3 {[%emt 0:02:04]} (38. Ra7 $16) 38... Rxd7+ {[%emt 0:01:17]} 39. Rxd7+ {[%emt 0:00:05]} Kxd7 {[%emt 0:00:07]} 40. Kc3 {[%emt 0:01:05]} Kc7 {[%emt 0:00:58]} 41. Kb3 {[%emt 0:04:50]} a5 {[%emt 0:02:41]} (41... g5 $11) 42. a4 $11 {[%emt 0:02:15]} 1/2-1/2